[Event "Commonwealth Open 2019"]
[Site "Delhi"]
[Date "2019.07.06"]
[Round "8.14"]
[White "Thejkumar, M. S."]
[Black "Kumar, Gaurav"]
[Result "1-0"]
[ECO "E11"]
[WhiteElo "2458"]
[BlackElo "2110"]
[Annotator "ChessBase"]
[PlyCount "107"]
[EventDate "2019.06.30"]
[EventType "swiss"]
[EventCountry "IND"]
[SourceTitle "playchess.com"]
[Source "ChessBase"]
[SourceQuality "1"]
[TimeControl "5400+30"]

1. d4 {[%emt 0:09:20]} Nf6 {[%emt 0:00:00]} 2. c4 {[%emt 0:00:27]} e6 {[%emt 0:00:00]} 3. Nf3 {[%emt 0:00:07]} Bb4+ {[%emt 0:00:00]} 4. Bd2 {[%emt 0:00:32]} a5 {[%emt 0:00:00]} 5. g3 {[%emt 0:00:18]} d6 {[%emt 0:00:00]} 6. Bg2 {[%emt 0:00:15]} Nbd7 {[%emt 0:00:00]} 7. O-O {[%emt 0:00:40]} e5 {[%emt 0:00:00]} 8. Nc3 {[%emt 0:01:59]} O-O {[%emt 0:00:00]} 9. Qc2 {[%emt 0:01:13]} Re8 {[%emt 0:00:18]} 10. dxe5 {[%emt 0:08:50]} Nxe5 {[%emt 0:07:43]} 11. Bg5 {[%emt 0:16:13]} h6 {[%emt 0:04:15]} 12. Bxf6 {[%emt 0:03:27]} Qxf6 {[%emt 0:00:01]} 13. Nd5 {[%emt 0:00:31]} Qd8 {[%emt 0:00:07]} 14. a3 {[%emt 0:09:40]} Bc5 {[%emt 0:07:49]} 15. b4 {[%emt 0:00:28]} Ba7 {[%emt 0:02:36]} 16. Rad1 {[%emt 0:05:53]} c6 {[%emt 0:05:22]} 17. Nf4 {[%emt 0:00:10]} Qf6 {[%emt 0:01:56]} 18. Nd2 {[%emt 0:05:04]} Bf5 {[%emt 0:11:38]} 19. Be4 {[%emt 0:10:13]} Bd7 {[%emt 0:10:39]} 20. Nb3 {[%emt 0:10:03]} axb4 {[%emt 0:09:47]} 21. axb4 {[%emt 0:00:06]} Ng4 {[%emt 0:00:12]} 22. c5 {[%emt 0:04:05]} Bb8 {[%emt 0:12:21]} 23. cxd6 {[%emt 0:02:46]} Bxd6 {[%emt 0:00:43]} 24. Nc5 {[%emt 0:00:12]} Bxc5 {[%emt 0:00:59]} 25. bxc5 {[%emt 0:00:11]} Bc8 {[%emt 0:00:17]} 26. Bg2 {[%emt 0:02:42]} Ra5 {[%emt 0:02:33]} 27. Rd6 {[%emt 0:02:13]} Qg5 {[%emt 0:03:38]} 28. Rc1 {[%emt 0:01:32]} Bf5 {[%emt 0:07:28]} 29. e4 {[%emt 0:00:49]} Bh7 {[%emt 0:00:58]} 30. h4 {[%emt 0:00:58]} Qe5 {[%emt 0:04:24]} 31. Nd3 {[%emt 0:00:18]} Qe7 {[%emt 0:00:07]} 32. Qd2 {[%emt 0:01:13]} Rb5 {[%emt 0:00:54]} 33. f3 {[%emt 0:00:28]} Nf6 {[%emt 0:05:50]} 34. Nf4 {[%emt 0:00:21]} Qe5 {[%emt 0:01:17]} 35. Qf2 {[%emt 0:01:01]} g5 {[%emt 0:02:02]} 36. Nd3 {[%emt 0:00:23]} Qe7 {[%emt 0:00:12]} 37. hxg5 {[%emt 0:00:10]} hxg5 {[%emt 0:00:03]} 38. Qd4 {[%emt 0:00:14]} Nh5 {[%emt 0:00:38]} 39. Kf2 {[%emt 0:00:44]} g4 {[%emt 0:01:43]} 40. Rh1 {[%emt 0:01:01]} Bg6 {[%emt 0:00:46]} 41. Rxh5 {[%emt 0:01:27]} Bxh5 {[%emt 0:00:37]} 42. Rh6 {[%emt 0:00:03]} f6 {[%emt 0:00:27]} 43. Rxh5 {[%emt 0:00:10]} Rd8 {[%emt 0:00:32]} 44. Qc4+ {[%emt 0:00:11]} Kg7 {[%emt 0:00:03]} 45. fxg4 {[%emt 0:00:15]} Qd7 {[%emt 0:00:52]} 46. Bf1 {[%emt 0:00:59]} Rb1 {[%emt 0:00:29]} 47. Be2 {[%emt 0:00:28]} Re8 {[%emt 0:00:33]} 48. g5 {[%emt 0:00:41]} Qe6 {[%emt 0:00:15]} 49. Qd4 {[%emt 0:00:57]} Rf8 {[%emt 0:00:35]} 50. Nf4 {[%emt 0:00:22]} Qe7 {[%emt 0:00:16]} 51. gxf6+ {[%emt 0:00:58]} Qxf6 {[%emt 0:00:13]} 52. e5 {[%emt 0:00:11]} Qe7 {[%emt 0:00:08]} 53. Bd3 {[%emt 0:01:01]} Kg8 {[%emt 0:01:43]} 54. Bxb1 {[%emt 0:00:10]} 1-0

[Event "Commonwealth Open 2019"]
[Site "Delhi"]
[Date "2019.07.06"]
[Round "8.15"]
[White "Michelle Catherina, P."]
[Black "Shyaamnikhil, P."]
[Result "0-1"]
[ECO "B90"]
[WhiteElo "2226"]
[BlackElo "2434"]
[Annotator "NA"]
[PlyCount "84"]
[EventDate "2019.06.30"]
[EventType "swiss"]
[EventCountry "IND"]
[SourceTitle "playchess.com"]
[Source "ChessBase"]
[SourceQuality "1"]
[TimeControl "5400+30"]

1. e4 {[%emt 0:01:18]} c5 {[%emt 0:00:00]} 2. Nf3 {[%emt 0:00:06]} d6 {[%emt 0:02:22]} 3. d4 {[%emt 0:00:08]} Nf6 {[%emt 0:00:05]} 4. Nc3 {[%emt 0:00:06]} cxd4 {[%emt 0:00:04]} 5. Nxd4 {[%emt 0:00:21]} a6 {[%emt 0:00:05]} 6. h3 {[%emt 0:00:33]} Nc6 {[%emt 0:00:11]} 7. g4 {[%emt 0:03:25]} Nxd4 {[%emt 0:00:09]} 8. Qxd4 {[%emt 0:00:07]} e5 {[%emt 0:00:03]} 9. Qd3 {[%emt 0:02:50]} Be6 {[%emt 0:00:52]} 10. g5 {[%emt 0:05:04]} Nd7 {[%emt 0:01:40]} 11. Bg2 {[%emt 0:04:01]} Rc8 {[%emt 0:01:36]} 12. Be3 {[%emt 0:02:21]} b5 {[%emt 0:01:09]} 13. a4 {[%emt 0:09:47]} Qa5 {[%emt 0:15:48]} 14. Qd2 {[%emt 0:20:36]} b4 {[%emt 0:10:25]} 15. Nd5 {[%emt 0:03:43]} Bxd5 {[%emt 0:00:07]} 16. exd5 {[%emt 0:00:22]} f5 {[%emt 0:01:34]} 17. gxf6 {[%emt 0:04:52]} Nxf6 {[%emt 0:00:42]} 18. h4 {[%emt 0:03:57]} Rc7 {[%emt 0:02:22]} 19. b3 {[%emt 0:05:52]} Be7 {[%emt 0:01:27]} 20. O-O-O {[%emt 0:04:31]} O-O {[%emt 0:00:18]} 21. Qe2 {[%emt 0:06:17]} Kh8 {[%emt 0:01:06]} 22. Kb1 {[%emt 0:04:59]} Bd8 {[%emt 0:01:12]} 23. Rhg1 {[%emt 0:02:07]} Rcf7 {[%emt 0:01:45]} 24. Bg5 {[%emt 0:07:26]} Bb6 {[%emt 0:12:23]} 25. Bxf6 {[%emt 0:05:34]} Rxf6 {[%emt 0:00:08]} 26. Be4 {[%emt 0:00:16]} Bxf2 {[%emt 0:04:47]} 27. Rg2 {[%emt 0:01:50]} Bd4 {[%emt 0:00:27]} 28. Qh5 {[%emt 0:00:54]} Rh6 {[%emt 0:00:09]} 29. Qg5 {[%emt 0:00:29]} Qc7 {[%emt 0:00:12]} 30. Rg3 {[%emt 0:00:31]} a5 {[%emt 0:02:13]} 31. h5 {[%emt 0:00:30]} Rhf6 {[%emt 0:03:34]} 32. Ka2 {[%emt 0:00:31]} Rf2 {[%emt 0:05:50]} 33. Rc1 {[%emt 0:00:07]} Qf7 {[%emt 0:00:35]} 34. Rh1 {[%emt 0:00:54]} Qf6 {[%emt 0:01:34]} 35. Qg6 {[%emt 0:00:34]} Qxg6 {[%emt 0:02:40]} 36. hxg6 {[%emt 0:00:21]} Rf1 {[%emt 0:02:43]} 37. Rgh3 {[%emt 0:00:38]} h6 {[%emt 0:00:06]} 38. Bd3 {[%emt 0:00:26]} Rxh1 {[%emt 0:00:15]} 39. Rxh1 {[%emt 0:00:01]} Kg8 {[%emt 0:00:19]} 40. Kb1 {[%emt 0:00:48]} Rf4 {[%emt 0:01:23]} 41. Kc1 {[%emt 0:00:43]} e4 {[%emt 0:00:27]} 42. Rf1 {[%emt 0:00:29]} exd3 {[%emt 0:00:09]} 0-1

[Event "Commonwealth Open 2019"]
[Site "Delhi"]
[Date "2019.07.06"]
[Round "8.16"]
[White "Rathnakaran, K.."]
[Black "Kiran, Manisha Mohanty"]
[Result "1/2-1/2"]
[ECO "B50"]
[WhiteElo "2338"]
[BlackElo "2054"]
[Annotator "NA"]
[PlyCount "126"]
[EventDate "2019.06.30"]
[EventType "swiss"]
[EventCountry "IND"]
[SourceTitle "playchess.com"]
[Source "ChessBase"]
[SourceQuality "1"]
[TimeControl "5400+30"]

1. e4 {[%emt 0:00:00]} c5 {[%emt 0:03:34]} 2. Nf3 {[%emt 0:00:00]} d6 {[%emt 0:00:17]} 3. b3 {[%emt 0:00:00]} Nc6 {[%emt 0:00:04]} 4. Bb2 {[%emt 0:00:00]} e5 {[%emt 0:00:06]} 5. Bc4 {[%emt 0:00:06]} Be7 {[%emt 0:00:25]} 6. Nc3 {[%emt 0:00:23]} Nf6 {[%emt 0:00:12]} 7. h3 {[%emt 0:00:07]} O-O {[%emt 0:00:37]} 8. Qe2 {[%emt 0:01:35]} a6 {[%emt 0:02:20]} 9. O-O {[%emt 0:00:21]} Be6 {[%emt 0:02:28]} 10. Bxe6 {[%emt 0:00:08]} fxe6 {[%emt 0:00:05]} 11. Nh2 {[%emt 0:00:05]} Nd4 {[%emt 0:00:27]} 12. Qd1 {[%emt 0:00:06]} Qe8 {[%emt 0:00:59]} 13. d3 {[%emt 0:00:09]} Qg6 {[%emt 0:00:43]} 14. Ne2 {[%emt 0:02:36]} Nh5 {[%emt 0:00:59]} 15. Nxd4 {[%emt 0:01:25]} cxd4 {[%emt 0:00:13]} 16. Bc1 {[%emt 0:04:49]} Rac8 {[%emt 0:00:37]} 17. Nf3 {[%emt 0:00:48]} Nf4 {[%emt 0:03:59]} 18. Bxf4 {[%emt 0:00:07]} Rxf4 {[%emt 0:00:08]} 19. g3 {[%emt 0:01:48]} Rf7 {[%emt 0:03:05]} 20. Kg2 {[%emt 0:01:37]} Rcf8 {[%emt 0:01:53]} 21. Nh2 {[%emt 0:02:06]} h5 {[%emt 0:00:43]} 22. Qe2 {[%emt 0:00:17]} Bg5 {[%emt 0:03:17]} 23. b4 {[%emt 0:02:23]} b6 {[%emt 0:10:23]} 24. a4 {[%emt 0:00:45]} Bh6 {[%emt 0:05:34]} 25. Kh1 {[%emt 0:00:31]} Qg5 {[%emt 0:01:41]} 26. Rad1 {[%emt 0:01:28]} Rc7 {[%emt 0:00:56]} 27. Rg1 {[%emt 0:03:57]} Rfc8 {[%emt 0:01:35]} 28. Nf3 {[%emt 0:00:22]} Qf6 {[%emt 0:03:43]} 29. Ne1 {[%emt 0:00:08]} h4 {[%emt 0:03:00]} 30. g4 {[%emt 0:23:31]} Bg5 {[%emt 0:00:17]} 31. Kg2 {[%emt 0:00:11]} Qf4 {[%emt 0:03:12]} 32. Rf1 {[%emt 0:04:14]} Rc3 {[%emt 0:03:07]} 33. Kg1 {[%emt 0:01:24]} Rf8 {[%emt 0:01:10]} 34. a5 {[%emt 0:00:43]} b5 {[%emt 0:00:27]} 35. Kg2 {[%emt 0:02:22]} Rfc8 {[%emt 0:00:08]} 36. Kg1 {[%emt 0:00:15]} Rf8 {[%emt 0:00:54]} 37. Kg2 {[%emt 0:00:06]} Rf7 {[%emt 0:07:56]} 38. Rb1 {[%emt 0:04:10]} Qd2 {[%emt 0:00:31]} 39. Qxd2 {[%emt 0:00:48]} Bxd2 {[%emt 0:00:03]} 40. Nf3 {[%emt 0:00:04]} Bf4 {[%emt 0:00:24]} 41. Nxh4 {[%emt 0:01:50]} Rxc2 {[%emt 0:00:12]} 42. Nf3 {[%emt 0:00:37]} Rfc7 {[%emt 0:00:48]} 43. Kg1 {[%emt 0:02:59]} R7c3 {[%emt 0:01:34]} 44. Rfd1 {[%emt 0:00:28]} Ra2 {[%emt 0:00:17]} 45. h4 {[%emt 0:01:36]} Kf7 {[%emt 0:00:15]} 46. h5 {[%emt 0:00:16]} Raa3 {[%emt 0:00:26]} 47. Ne1 {[%emt 0:00:39]} Kf6 {[%emt 0:00:07]} 48. Kg2 {[%emt 0:00:07]} d5 {[%emt 0:01:02]} 49. exd5 {[%emt 0:09:09]} exd5 {[%emt 0:01:46]} 50. Rb2 {[%emt 0:03:07]} Rab3 {[%emt 0:03:35]} 51. Re2 {[%emt 0:00:48]} e4 {[%emt 0:15:44]} 52. dxe4 {[%emt 0:01:11]} d3 {[%emt 0:00:02]} 53. e5+ {[%emt 0:00:07]} Ke7 {[%emt 0:00:04]} 54. Ra2 {[%emt 0:00:12]} d2 {[%emt 0:03:07]} 55. Nc2 {[%emt 0:00:08]} Rd3 {[%emt 0:00:38]} 56. Ne3 {[%emt 0:02:35]} Bxe3 {[%emt 0:00:06]} 57. fxe3 {[%emt 0:00:03]} Rxe3 {[%emt 0:00:09]} 58. Raxd2 {[%emt 0:00:17]} Rg3+ {[%emt 0:00:08]} 59. Kf1 {[%emt 0:00:17]} Rxg4 {[%emt 0:00:23]} 60. Rxd5 {[%emt 0:00:19]} Rf4+ {[%emt 0:00:21]} 61. Kg2 {[%emt 0:00:23]} Rg4+ {[%emt 0:00:05]} 62. Kf2 {[%emt 0:00:15]} Rf4+ {[%emt 0:00:07]} 63. Kg2 {[%emt 0:00:21]} Rg4+ {[%emt 0:00:04]} 1/2-1/2

[Event "Commonwealth Open 2019"]
[Site "Delhi"]
[Date "2019.07.06"]
[Round "8.17"]
[White "Priyanka, K."]
[Black "Sangma, Rahul"]
[Result "1/2-1/2"]
[ECO "C65"]
[WhiteElo "2053"]
[BlackElo "2298"]
[Annotator "NA"]
[PlyCount "114"]
[EventDate "2019.06.30"]
[EventType "swiss"]
[EventCountry "IND"]
[SourceTitle "playchess.com"]
[Source "ChessBase"]
[SourceQuality "1"]
[TimeControl "5400+30"]

1. e4 {[%emt 0:00:10]} e5 {[%emt 0:00:00]} 2. Nf3 {[%emt 0:00:15]} Nc6 {[%emt 0:00:00]} 3. Bb5 {[%emt 0:00:29]} Nf6 {[%emt 0:00:11]} 4. d3 {[%emt 0:00:59]} Bc5 {[%emt 0:00:05]} 5. c3 {[%emt 0:00:44]} d6 {[%emt 0:00:18]} 6. O-O {[%emt 0:01:38]} O-O {[%emt 0:00:58]} 7. Re1 {[%emt 0:03:13]} a6 {[%emt 0:01:46]} 8. Ba4 {[%emt 0:02:01]} Ba7 {[%emt 0:00:42]} 9. h3 {[%emt 0:01:32]} Ne7 {[%emt 0:00:56]} 10. Nbd2 {[%emt 0:02:23]} Ng6 {[%emt 0:00:13]} 11. Nf1 {[%emt 0:04:27]} Nh5 {[%emt 0:00:42]} 12. d4 {[%emt 0:16:55]} Nhf4 {[%emt 0:07:36]} 13. dxe5 {[%emt 0:07:52]} dxe5 {[%emt 0:02:34]} 14. Qxd8 {[%emt 0:08:29]} Rxd8 {[%emt 0:00:04]} 15. Be3 {[%emt 0:03:22]} Be6 {[%emt 0:06:57]} 16. Bc2 {[%emt 0:04:29]} c5 {[%emt 0:06:41]} 17. b3 {[%emt 0:05:58]} f6 {[%emt 0:02:21]} 18. Bxf4 {[%emt 0:05:19]} Nxf4 {[%emt 0:02:47]} 19. c4 {[%emt 0:00:30]} Bb6 {[%emt 0:02:53]} 20. Ne3 {[%emt 0:02:20]} Ba5 {[%emt 0:00:08]} 21. Red1 {[%emt 0:00:43]} Bc3 {[%emt 0:10:37]} 22. Rxd8+ {[%emt 0:03:33]} Rxd8 {[%emt 0:00:02]} 23. Rd1 {[%emt 0:00:11]} Bd4 {[%emt 0:01:33]} 24. Kf1 {[%emt 0:01:37]} g5 {[%emt 0:05:05]} 25. Nd5 {[%emt 0:00:59]} Kf7 {[%emt 0:00:09]} 26. Nxf4 {[%emt 0:06:07]} gxf4 {[%emt 0:01:32]} 27. Bd3 {[%emt 0:04:11]} Ke7 {[%emt 0:00:18]} 28. Ke2 {[%emt 0:00:38]} Rg8 {[%emt 0:00:08]} 29. Nh4 {[%emt 0:00:54]} Kd7 {[%emt 0:00:17]} 30. Kf3 {[%emt 0:00:53]} Bf7 {[%emt 0:01:58]} 31. g3 {[%emt 0:00:45]} fxg3 {[%emt 0:12:30]} 32. fxg3 {[%emt 0:00:07]} Bh5+ {[%emt 0:00:46]} 33. g4 {[%emt 0:00:16]} Be8 {[%emt 0:00:03]} 34. Nf5 {[%emt 0:00:51]} h5 {[%emt 0:00:05]} 35. Ng3 {[%emt 0:00:22]} Rh8 {[%emt 0:07:34]} 36. Rh1 {[%emt 0:01:30]} h4 {[%emt 0:03:20]} 37. Nf5 {[%emt 0:00:15]} Rh7 {[%emt 0:00:04]} 38. Rb1 {[%emt 0:01:05]} Ke6 {[%emt 0:00:40]} 39. a3 {[%emt 0:01:30]} Bc3 {[%emt 0:04:40]} 40. b4 {[%emt 0:04:12]} Kd7 {[%emt 0:07:32]} 41. Bc2 {[%emt 0:06:08]} Kc7 {[%emt 0:02:09]} 42. bxc5 {[%emt 0:00:20]} Bc6 {[%emt 0:03:30]} 43. Ne3 {[%emt 0:00:45]} Bd2 {[%emt 0:02:29]} 44. Nd5+ {[%emt 0:00:17]} Kc8 {[%emt 0:00:04]} 45. Ke2 {[%emt 0:00:39]} Bg5 {[%emt 0:00:03]} 46. Rf1 {[%emt 0:00:10]} Rf7 {[%emt 0:00:24]} 47. Rd1 {[%emt 0:00:14]} Kb8 {[%emt 0:03:41]} 48. Nb6 {[%emt 0:00:12]} Kc7 {[%emt 0:00:32]} 49. Na8+ {[%emt 0:00:19]} Kc8 {[%emt 0:00:42]} 50. Nb6+ {[%emt 0:00:07]} Kc7 {[%emt 0:00:08]} 51. Na8+ {[%emt 0:01:24]} Kc8 {[%emt 0:00:12]} 52. Nb6+ {[%emt 0:00:30]} Kc7 {[%emt 0:00:03]} 53. Nd5+ {[%emt 0:00:40]} Kb8 {[%emt 0:00:43]} 54. Nb4 {[%emt 0:00:45]} Bd7 {[%emt 0:00:56]} 55. Nd5 {[%emt 0:00:44]} Bc6 {[%emt 0:03:32]} 56. Nb6 {[%emt 0:00:15]} Kc7 {[%emt 0:00:14]} 57. Na8+ {[%emt 0:00:43]} Kc8 {[%emt 0:00:03]} 1/2-1/2

[Event "Commonwealth Open 2019"]
[Site "Delhi"]
[Date "2019.07.06"]
[Round "8.18"]
[White "Anilkumar, O.T."]
[Black "Ajay Karthikeyan"]
[Result "1/2-1/2"]
[ECO "B08"]
[WhiteElo "1989"]
[BlackElo "2216"]
[Annotator "NA"]
[PlyCount "128"]
[EventDate "2019.06.30"]
[EventType "swiss"]
[EventCountry "IND"]
[SourceTitle "playchess.com"]
[Source "ChessBase"]
[SourceQuality "1"]
[TimeControl "5400+30"]

1. d4 {[%emt 0:00:00]} d6 {[%emt 0:00:46]} 2. e4 {[%emt 0:00:00]} Nf6 {[%emt 0:00:03]} 3. Nc3 {[%emt 0:00:21]} g6 {[%emt 0:00:03]} 4. Nf3 {[%emt 0:00:40]} Bg7 {[%emt 0:00:43]} 5. Bd3 {[%emt 0:00:19]} O-O {[%emt 0:00:15]} 6. h3 {[%emt 0:00:06]} Nc6 {[%emt 0:01:32]} 7. Bg5 {[%emt 0:00:31]} h6 {[%emt 0:00:48]} 8. Be3 {[%emt 0:00:12]} e5 {[%emt 0:00:35]} 9. dxe5 {[%emt 0:01:20]} dxe5 {[%emt 0:01:35]} 10. Qd2 {[%emt 0:00:02]} Kh7 {[%emt 0:00:39]} 11. O-O-O {[%emt 0:04:08]} Be6 {[%emt 0:08:40]} 12. Kb1 {[%emt 0:00:20]} a6 {[%emt 0:00:50]} 13. g4 {[%emt 0:00:03]} Nd7 {[%emt 0:00:31]} 14. Ne2 {[%emt 0:03:25]} Nb6 {[%emt 0:08:13]} 15. Ng3 {[%emt 0:06:11]} Nd4 {[%emt 0:02:09]} 16. Ne1 {[%emt 0:03:54]} Nc4 {[%emt 0:11:03]} 17. Bxc4 {[%emt 0:00:02]} Bxc4 {[%emt 0:00:01]} 18. c3 {[%emt 0:00:20]} Ne6 {[%emt 0:01:58]} 19. b3 {[%emt 0:04:35]} Qxd2 {[%emt 0:00:53]} 20. Rxd2 {[%emt 0:00:03]} Bb5 {[%emt 0:00:01]} 21. Ng2 {[%emt 0:00:36]} a5 {[%emt 0:01:57]} 22. h4 {[%emt 0:05:59]} Rfd8 {[%emt 0:06:06]} 23. Rhd1 {[%emt 0:01:12]} Bf8 {[%emt 0:12:16]} 24. Rxd8 {[%emt 0:00:58]} Rxd8 {[%emt 0:00:06]} 25. Rxd8 {[%emt 0:00:09]} Nxd8 {[%emt 0:00:01]} 26. Kc2 {[%emt 0:00:41]} b6 {[%emt 0:00:30]} 27. f3 {[%emt 0:00:13]} Ne6 {[%emt 0:00:22]} 28. c4 {[%emt 0:01:22]} Bc6 {[%emt 0:02:15]} 29. Kd3 {[%emt 0:08:46]} a4 {[%emt 0:02:27]} 30. Ne2 {[%emt 0:06:10]} axb3 {[%emt 0:00:18]} 31. axb3 {[%emt 0:00:04]} f5 {[%emt 0:13:37]} 32. Nc3 {[%emt 0:13:27]} fxg4 {[%emt 0:00:26]} 33. fxg4 {[%emt 0:00:02]} Be7 {[%emt 0:03:15]} 34. Nd5 {[%emt 0:00:06]} Bd8 {[%emt 0:00:01]} 35. Bf2 {[%emt 0:01:05]} Bd7 {[%emt 0:01:25]} 36. b4 {[%emt 0:01:28]} Nd4 {[%emt 0:09:03]} 37. Nde3 {[%emt 0:07:58]} Kg7 {[%emt 0:07:20]} 38. Bg3 {[%emt 0:00:03]} Kf6 {[%emt 0:00:59]} 39. Nd5+ {[%emt 0:00:35]} Ke6 {[%emt 0:00:18]} 40. Ngf4+ {[%emt 0:02:23]} Kf7 {[%emt 0:00:49]} 41. Ng2 {[%emt 0:00:01]} Bxg4 {[%emt 0:02:37]} 42. Bxe5 {[%emt 0:00:02]} Ne6 {[%emt 0:00:06]} 43. Bg3 {[%emt 0:00:44]} c6 {[%emt 0:01:58]} 44. Nde3 {[%emt 0:03:22]} Bh3 {[%emt 0:00:07]} 45. Ne1 {[%emt 0:01:46]} g5 {[%emt 0:00:31]} 46. hxg5 {[%emt 0:00:02]} Nxg5 {[%emt 0:00:12]} 47. Bd6 {[%emt 0:01:09]} h5 {[%emt 0:00:45]} 48. N1c2 {[%emt 0:00:48]} Bd7 {[%emt 0:01:35]} 49. Ng2 {[%emt 0:00:47]} Ne6 {[%emt 0:00:38]} 50. Bg3 {[%emt 0:00:08]} Kg6 {[%emt 0:00:58]} 51. Nce3 {[%emt 0:04:43]} Be7 {[%emt 0:00:01]} 52. Be1 {[%emt 0:02:02]} Nf8 {[%emt 0:00:57]} 53. Kd4 {[%emt 0:01:33]} Kf7 {[%emt 0:00:37]} 54. e5 {[%emt 0:00:57]} c5+ {[%emt 0:00:20]} 55. bxc5 {[%emt 0:00:09]} Bxc5+ {[%emt 0:00:01]} 56. Ke4 {[%emt 0:00:25]} Ne6 {[%emt 0:00:59]} 57. Bh4 {[%emt 0:00:43]} Bc6+ {[%emt 0:00:08]} 58. Nd5 {[%emt 0:00:05]} Kg6 {[%emt 0:00:34]} 59. Ngf4+ {[%emt 0:05:29]} Nxf4 {[%emt 0:00:01]} 60. Kxf4 {[%emt 0:00:01]} Kf7 {[%emt 0:00:01]} 61. Kf5 {[%emt 0:01:24]} Bd7+ {[%emt 0:00:15]} 62. Ke4 {[%emt 0:00:48]} Bc6 {[%emt 0:00:40]} 63. Kf5 {[%emt 0:00:02]} Bd7+ {[%emt 0:00:05]} 64. Ke4 {[%emt 0:00:02]} Bc6 {[%emt 0:00:44]} 1/2-1/2

[Event "Commonwealth Open 2019"]
[Site "Delhi"]
[Date "2019.07.06"]
[Round "8.19"]
[White "Srihari L R"]
[Black "Arya, Bhakta"]
[Result "1-0"]
[ECO "A21"]
[WhiteElo "2200"]
[BlackElo "2050"]
[Annotator "NA"]
[PlyCount "107"]
[EventDate "2019.06.30"]
[EventType "swiss"]
[EventCountry "IND"]
[SourceTitle "playchess.com"]
[Source "ChessBase"]
[SourceQuality "1"]
[TimeControl "5400+30"]

1. d3 {[%emt 0:02:03]} f5 {[%emt 0:00:36]} 2. e4 {[%emt 0:00:07]} d6 {[%emt 0:02:01]} 3. c4 {[%emt 0:04:36]} e5 {[%emt 0:01:51]} 4. Nc3 {[%emt 0:00:17]} Nf6 {[%emt 0:02:28]} 5. g3 {[%emt 0:03:30]} fxe4 {[%emt 0:01:23]} 6. dxe4 {[%emt 0:00:06]} g6 {[%emt 0:00:10]} 7. Bg2 {[%emt 0:00:23]} Bg7 {[%emt 0:00:07]} 8. Nge2 {[%emt 0:00:05]} O-O {[%emt 0:00:45]} 9. O-O {[%emt 0:02:37]} Be6 {[%emt 0:01:22]} 10. Nd5 {[%emt 0:02:57]} c6 {[%emt 0:01:02]} 11. Ne3 {[%emt 0:02:54]} Ng4 {[%emt 0:07:45]} 12. b3 {[%emt 0:19:28]} Nxe3 {[%emt 0:04:38]} 13. Bxe3 {[%emt 0:02:00]} c5 {[%emt 0:00:35]} 14. f4 {[%emt 0:13:19]} Nc6 {[%emt 0:06:31]} 15. f5 {[%emt 0:04:57]} gxf5 {[%emt 0:04:25]} 16. exf5 {[%emt 0:01:25]} Bxf5 {[%emt 0:01:42]} 17. Qd5+ {[%emt 0:01:58]} Kh8 {[%emt 0:00:18]} 18. Rad1 {[%emt 0:00:53]} Bg4 {[%emt 0:03:30]} 19. Rxf8+ {[%emt 0:09:45]} Bxf8 {[%emt 0:19:11]} 20. Rd2 {[%emt 0:08:33]} Qe8 {[%emt 0:10:52]} 21. Nc3 {[%emt 0:02:19]} Qg6 {[%emt 0:07:06]} 22. Be4 {[%emt 0:05:32]} Qh5 {[%emt 0:08:52]} 23. Rf2 {[%emt 0:02:16]} Rd8 {[%emt 0:06:55]} 24. Qf7 {[%emt 0:05:05]} Bg7 {[%emt 0:03:19]} 25. Qxb7 {[%emt 0:01:23]} Nd4 {[%emt 0:00:44]} 26. Rf7 {[%emt 0:03:26]} Rg8 {[%emt 0:00:38]} 27. Bd5 {[%emt 0:00:53]} Qg6 {[%emt 0:01:03]} 28. Rf2 {[%emt 0:00:38]} Rf8 {[%emt 0:01:26]} 29. Rxf8+ {[%emt 0:00:28]} Bxf8 {[%emt 0:00:06]} 30. Qb8 {[%emt 0:00:34]} Qf6 {[%emt 0:02:06]} 31. Bg5 {[%emt 0:00:28]} Nf3+ {[%emt 0:00:15]} 32. Bxf3 {[%emt 0:00:07]} Qxf3 {[%emt 0:00:03]} 33. Bh6 {[%emt 0:00:21]} Kg8 {[%emt 0:00:08]} 34. Qxf8+ {[%emt 0:00:10]} Qxf8 {[%emt 0:00:07]} 35. Bxf8 {[%emt 0:00:11]} Kxf8 {[%emt 0:00:03]} 36. Nb5 {[%emt 0:00:06]} Ke7 {[%emt 0:00:49]} 37. Nxa7 {[%emt 0:00:11]} Bd1 {[%emt 0:00:24]} 38. Kf2 {[%emt 0:00:35]} Bc2 {[%emt 0:01:34]} 39. Nb5 {[%emt 0:00:06]} Ke6 {[%emt 0:00:39]} 40. Ke3 {[%emt 0:00:22]} h5 {[%emt 0:00:16]} 41. Nc3 {[%emt 0:00:33]} Kf6 {[%emt 0:01:02]} 42. Kd2 {[%emt 0:00:33]} Bf5 {[%emt 0:00:10]} 43. a3 {[%emt 0:01:30]} Kg5 {[%emt 0:00:28]} 44. Nb5 {[%emt 0:00:23]} Kg4 {[%emt 0:00:49]} 45. Nxd6 {[%emt 0:00:05]} Bd7 {[%emt 0:00:13]} 46. Ke3 {[%emt 0:00:59]} Kh3 {[%emt 0:00:08]} 47. b4 {[%emt 0:00:08]} cxb4 {[%emt 0:00:19]} 48. axb4 {[%emt 0:00:02]} Kxh2 {[%emt 0:00:11]} 49. Kf2 {[%emt 0:00:03]} Bc6 {[%emt 0:00:49]} 50. b5 {[%emt 0:00:04]} Ba8 {[%emt 0:00:05]} 51. c5 {[%emt 0:00:10]} e4 {[%emt 0:00:05]} 52. c6 {[%emt 0:00:14]} e3+ 53. Kxe3 {[%emt 0:00:05]} Kxg3 {[%emt 0:00:50]} 54. c7 {[%emt 0:00:06]} 1-0